{"text_format":"3","workbook":"xlsx","n_sheets":3,"sheets":["Лист1","Лист2","Лист3"],"read":"whole","date_system":"1900"}

{"sheet":"Лист1","index":0,"n_rows":137,"n_cols":13,"rows_kept":137,"merged":[[48,0,48,11],[69,0,69,11],[75,0,75,12],[86,0,86,12],[93,0,93,12],[98,0,98,12]]}
[{"$nulls":6},"\"УТВЕРЖДАЮ\""]
[{"$nulls":6},"Директор МБОУ ДОД"]
[{"$nulls":6},"\"Центр детского творчества\"\""]
[{"$nulls":6},"__________Г.В.Мельникова"]
[]
[{"$nulls":3},"УЧЕБНЫЙ ПЛАН на  2013-2014г.г"]
[null,null,"Муниципального бюджетного образовательного учреждения дополнительного образования детей"]
[null,null,"\"Центр детского творчества\" Нурлатского муниципального района  Республики Татарстан"]
[]
["№","Название объединения","ФИО педагога","        Кол-во часов",null,null,"Всего групп",{"$nulls":3},"Кол-во ","Общее"]
[{"$nulls":10},"детей","кол-во"]
[{"$nulls":3},"     1-4кл.","5-9кл.","10-11",null,"1год ","2 год","3 год",null,"часов"]
[{"$nulls":7},"обучения","обучения","обучения"]
[]
[null,"                                        Художественно-эстетическое"]
[1,"Бисероплетение","Цветкова Л.Ф.",20,null,null,5,3,2,null,75,20]
[2,"Изодеятельность","Богданова Н.И.",16,4,null,5,5,null,null,75,20]
[3,"Вокальный","Смакова Р.Ф.",16,8,4,7,3,1,3,105,28]
[4,"Конструирование и моделирование одежды","Карымова А.С.",20,4,null,6,3,3,null,90,24]
[5,"Умелые руки","Мусина Г.Г.",16,8,null,6,3,3,null,90,24]
[6,"Вокальный ансамбль","Нигматуллина М.Я.",12,8,null,5,3,2,null,75,20]
[7,"Умелые руки","Белякова Л.В.",null,4,null,1,null,1,null,15,4]
[8,"Умелые руки","Галяутдинова О.А.",null,4,null,1,1,null,null,15,4]
[9,"Рукоделие","Маськина Т.Е.",null,4,null,1,1,null,null,15,4]
[10,"Драматический","Мухаметова М.И.",4,4,null,2,2,null,null,30,8]
[11,"Родные мотивы","Гаврилова М.Г.",null,4,null,1,null,1,null,15,4]
[12,"Лепка","ЕрмишкинаН.Н.",4,null,null,1,null,1,null,15,4]
[13,"Вышивка лентами","Рассадина Е.С.",null,8,null,2,1,1,null,30,8]
[14,"Танцевальный","Ефремова О.В.",4,4,null,2,null,1,1,30,8]
[15,"Плетение из лозы","Ахметвалиева И.Н.",4,null,null,1,1,null,null,15,4]
[16,"Рукодельница","Горшкова Ю.Д.",null,8,null,2,1,1,null,30,8]
[17,"Гитара","Рамазанов С.Ш.",null,4,null,1,1,null,null,15,4]
[18,"Дизайнер","Кутузова Н.П.",null,4,null,1,1,null,null,15,4]
[19,"Народные промыслы","Рафикова Г.Л.",null,4,null,1,null,1,null,15,4]
[20,"Умелые руки","Гиматова Ч.Ш.",null,4,null,1,null,1,null,15,4]
[21,"Умелые руки","Удальцова Л.И.",null,4,null,1,null,null,1,15,4]
[22,"Театральный","Ибрагимова А.М.",4,null,null,1,1,null,null,15,4]
[23,"Умелые руки","Яруллина З.Н.",4,null,null,1,1,null,null,15,4]
[24,"Изодеятельность","Фадеева И.П.",null,4,null,1,null,1,null,15,4]
[25,"Театральный","Фадеева Т.В.",null,4,null,1,1,null,null,15,4]
[26,"Чувашская национальная вышивка","Сандрюхина С.А.",null,4,null,1,null,1,null,15,4]
[27,"Затейник -ИЗО","Мусина Т.Г.",8,null,null,2,2,null,null,30,8]
[28,"Ритмика","Мельникова Г.В.",8,null,null,2,2,null,null,30,8]
[29,"Изодеятельность","Гурьянова Н.А.",null,4,null,1,1,null,null,15,4]
[30,"Квиллинг","Евлейкина Т.Ю.",null,4,null,1,1,null,null,15,4]
[31,"Веселые каблучки","Аглиуллина Г.А.",null,4,null,1,1,null,null,15,4]
[null,"всего часов",null,{"$f":"SUM(D16:D46)","v":140},{"$f":"SUM(E16:E46)","v":116},{"$f":"SUM(F17:F46)","v":4},{"$f":"SUM(G16:G46)","v":65},{"$f":"SUM(H16:H46)","v":39},{"$f":"SUM(I16:I46)","v":21},{"$f":"SUM(J16:J44)","v":5},null,{"$f":"SUM(L16:L46)","v":260}]
[null,"дети",{"$nulls":8},{"$f":"SUM(K16:K47)","v":975}]
["Научно-техническое"]
[32,"Начально-техническое моделирование","Цветкова Л.Ф.",4,null,null,1,1,null,null,15,4]
[33,"Столярное дело","Курамшин Р.Х.",null,4,null,1,1,null,null,15,4]
[34,"Столярное дело","Шартынов С.А.",4,16,null,5,2,3,null,75,20]
[35,"Ветрянная энергия","Алимов Х.Р.",null,4,null,1,1,null,null,15,4]
[36,"Судомоделирование","Гаязов Ф.Т.",null,4,null,1,1,null,null,15,4]
[37,"Эврика","Максимова Л.А.",null,4,null,1,1,null,null,15,4]
[38,"Юный техник","Мазилкина Л.П.",null,null,4,1,1,null,null,15,4]
[39,"Информатика","Беляева О.А.",null,4,null,1,null,1,null,15,4]
[40,"Робототехника","Фадькин А.В.",null,4,null,1,null,1,null,15,4]
[41,"Столярное дело","Михайлов Ю.Г.",null,4,null,1,null,1,null,15,4]
[42,"Легоконструирование","Нагуманова Л.А.",4,null,null,1,1,null,null,15,4]
[43,"Судомоделирование","Шамсутдинова Л.А.",null,4,null,1,1,null,null,15,4]
[44,"Судомоделирование","Капитонова А.М.",null,4,null,1,1,null,null,15,4]
[45,"Техническое моделирование","Мингазетдинов С.Н.",null,4,null,1,null,1,null,15,4]
[46,"Академия изобретателей","Кунакова Т.В.",null,8,null,2,2,null,null,30,8]
[47,"Легоконструирование","Чеботарева Н.В.",4,null,null,1,1,null,null,15,4]
[{"$nulls":4},8,null,2,2,null,null,30,8]
[48,"Юный вебмастер","Бикинеев Р.Н.",null,4,null,1,1,null,null,15,4]
[null,"всего часы",null,{"$f":"SUM(D50:D67)","v":16},76,4,24,17,7,0,null,{"$f":"SUM(L50:L67)","v":96}]
[null,"дети",{"$nulls":8},{"$f":"SUM(K50:K68)","v":360}]
["                                                      Военно-патриотическое"]
[49,"Патриот","Ендиряков А.В.",null,null,4,1,1,null,null,15,4]
[50,"Патриот","Тихонов А.Б.",null,null,4,1,1,null,null,15,4]
[null,"всего часов",null,0,{"$f":"SUM(E71:E72)","v":0},{"$f":"SUM(F71:F72)","v":8},{"$f":"SUM(G71:G72)","v":2},{"$f":"SUM(H71:H72)","v":2},{"$f":"SUM(I71:I72)","v":0},0,null,12]
[null,"всего часов",null,null,{"$f":"SUM(E73)","v":0},{"$f":"SUM(F73)","v":8},{"$f":"SUM(G73)","v":2},{"$f":"SUM(H73)","v":2}]
[null,"дети",{"$nulls":8},{"$f":"SUM(K71:K73)","v":30},8]
["                                                            Эколого-биологическое"]
[51,"Экологический","Галяветдинова З.Х.",null,4,null,1,1,null,null,15,4]
[52,"Экологический","Чибидина Т.И.",null,8,0,2,1,1,null,30,8]
[53,"Экологический","Самаркина С.А.",null,8,null,2,2,null,null,30,8]
[54,"Экологический","Сидорова Е.И.",null,4,null,1,null,1,null,15,4]
[55,"Экологический","Парукова Л.И.",null,null,4,1,1,null,null,15,4]
[56,"Экологический","Гилязева Л.С.",null,4,null,1,1,null,null,15,4]
[57,"Экологический","Битулина Е.А.",null,null,4,1,null,1,null,15,4]
[null,"всего часов",null,0,{"$f":"SUM(E77:E83)","v":28},8,9,6,3,0,null,{"$f":"SUM(L77:L83)","v":36}]
[null,"дети",{"$nulls":8},{"$f":"SUM(K77:K84)","v":135}]
[]
["                                                         Туриско-краеведческое"]
[58,"Краеведение","Тимирбулатов И.Г.",null,4,null,1,null,1,null,15,4]
[59,"Краеведение","Рахимова Т.А.",null,4,null,1,null,1,null,15,4]
[60,"Краеведение","Сибгатова Д.Н.",null,4,null,1,1,null,null,15,4]
[null,"всего часов",null,null,{"$f":"SUM(E88:E90)","v":12},0,{"$f":"SUM(G88:G90)","v":3},{"$f":"SUM(H88:H90)","v":1},{"$f":"SUM(I88:I90)","v":2},0,null,{"$f":"SUM(L88:L90)","v":12}]
[null,"дети",null,0,{"$nulls":6},45]
[]
["                                                          Естественно-научное"]
[61,"Забавный английский","Ильгузина Э.М.",12,8,null,5,5,null,null,75,20]
[null,"всего часов",null,{"$f":"SUM(D95)","v":12},{"$f":"SUM(E95)","v":8},null,{"$f":"SUM(G95)","v":5},{"$f":"SUM(H95)","v":5},{"$nulls":3},{"$f":"SUM(L95)","v":20}]
[null,"дети",{"$nulls":8},{"$f":"SUM(K95:K96)","v":75}]
[]
["                                                          Социально-педагогическое"]
[62,"ЮИД","Алексеева Н.П.",4,null,null,1,1,null,null,15,4]
[72,"Основы лидерства","Абутьева Н.А.",null,4,null,1,1,null,null,15,4]
[63,"ЮИД","Гайфуллина Н.С.",null,4,null,1,null,1,null,15,4]
[64,"Основы лидерства","Салахова Г.Г.",null,null,4,1,1,null,null,15,4]
[65,"ЮИД","Нуруллина Н.Г.",4,null,null,1,1,null,null,15,4]
[66,"Основы лидерства","Ефремова О.М.",null,4,null,1,null,1,null,15,4]
[67,"Основы лидерства","Каняфина Э.Г.",null,4,null,1,null,1,null,15,4]
[68,"ЮИД","Галиева Л.Р.",4,null,null,1,1,null,null,15,4]
[69,"Основы лидерства","Соловьева И.П.",null,4,null,1,1,null,null,15,4]
[70,"СМС-дети","Летфуллина В.К.",null,4,null,1,1,null,null,15,4]
[71,"ЮИД","Фадеева Т.В.",4,null,null,1,1,null,null,15,4]
[72,"Основы лидерства","Абутьева Н.А.",null,4,null,1,1,null,null,15,4]
[73,"Основы лидерства","Билданова Ф.В.",null,4,null,1,1,null,null,15,4]
[null,"всего часов",null,{"$f":"SUM(D100:D112)","v":16},28,4,12,9,3,0,null,48]
[null,"дети",{"$nulls":8},180]
[]
[null,"итого",null,184,268,28,120,79,36,5,1800,480]
[]
[]
[]
[null,"Директор ЦДТ","Г.В. Мельникова"]
[]
[]
[{"$nulls":3},"УЧЕБНЫЙ ПЛАН на  2013-2014г.г"]
[null,null,"Муниципальное автономное образовательное учреждение\"Нурлатская гимназия\""]
[null,null,"Нурлатского муниципального района Республики Татарстан"]
[]
["№","Название объединения","ФИО педагога","        Кол-во часов",null,null,"Всего групп",{"$nulls":3},"Кол-во ","Общее","Общее"]
[{"$nulls":10},"детей","кол-во","кол-во"]
[{"$nulls":3},"  1-4кл.","5-9кл.","10-11",null,"1год ","2 год","3 год",null,"часов","часов"]
[{"$nulls":7},"обучения","обучения","обучения",null,null,"теория"]
[{"$nulls":12},"практика  всего"]
[null,"Базовая площадка"]
[1,"Ветрянная энергия","Алимов Х.Р.",null,4,null,1,1,null,null,15,4,"21/ 123               144"]
[2,"Судомоделирование","Гаязов Ф.Т.",null,4,null,1,1,null,null,15,4,"46/ 98                 144"]
[3,"Робототехника","Фадькин А.В.",null,4,null,1,1,null,null,15,4,144]
[4,"Легоконструирование","Нагуманова Л.А.",4,null,null,1,1,null,null,15,4,144]
[null,"всего часы",null,{"$f":"SUM(D119:D136)","v":4},12,0,4,4,0,0,60,{"$f":"SUM(L119:L136)","v":16},576]

{"sheet":"Лист2","index":1,"n_rows":0,"n_cols":0,"rows_kept":0}

{"sheet":"Лист3","index":2,"n_rows":0,"n_cols":0,"rows_kept":0}